fUST/lending_fUST_20250923
["ID","MTS","AMOUNT","RATE_DAILY","PERIOD"]
[387188471,1758623570491,-480.0,0.00019178,2]
[387188472,1758623570513,-480.0,0.00019178,2]
[387188473,1758623570536,-480.0,0.00019178,2]
[387188474,1758623570558,-480.0,0.00019178,2]
[387188475,1758623570581,-480.0,0.00019178,2]
[387188476,1758623570602,-482.20432103,0.00019178,2]
[387188477,1758623570624,-480.0,0.00019178,2]
[387188478,1758623570646,-480.0,0.00019178,2]
[387188479,1758623570668,-480.0,0.00019178,2]
[387188480,1758623570689,-480.0,0.00019178,2]
[387188481,1758623570711,-480.0,0.00019178,2]
[387188482,1758623570735,-480.0,0.00019178,2]
[387188483,1758623570756,-480.0,0.00019178,2]
[387188484,1758623570779,-480.0,0.00019178,2]
[387188485,1758623570803,-480.0,0.00019178,2]
[387188486,1758623570827,-480.0,0.00019178,2]
[387188487,1758623570850,-480.0,0.00019178,2]
[387188488,1758623570872,-480.0,0.00019178,2]
[387188489,1758623570894,-486.50323812,0.00019178,2]
[387188490,1758623570915,-480.0,0.00019178,2]
[387188491,1758623570937,-488.06571843,0.00019178,2]
[387188492,1758623570958,-480.0,0.00019178,2]
[387188493,1758623570979,-480.0,0.00019178,2]
[387188494,1758623571090,-480.0,0.00019178,2]
[387188495,1758623571113,-480.0,0.00019178,2]
[387188496,1758623571135,-480.0,0.00019178,2]
[387188497,1758623571156,-480.0,0.00019178,2]
[387188498,1758623571177,-484.30867886,0.00019178,2]
[387188499,1758623571199,-480.0,0.00019178,2]
[387188500,1758623571220,-480.0,0.00019178,2]
[387188501,1758623571242,-230.99269384,0.00019178,2]
[387188502,1758623571264,-151.0,0.00019178,2]
[387188503,1758623571287,-480.0,0.00019178,2]
[387188504,1758623571521,-480.0,0.00019178,2]
[387188505,1758623571544,-480.0,0.00019178,2]
[387188506,1758623571567,-480.0,0.00019178,2]
[387188507,1758623571590,-480.0,0.00019178,2]
[387188508,1758623571613,-480.0,0.00019178,2]
[387188509,1758623571634,-1000.0,0.00019178,2]
[387188510,1758623571656,-480.0,0.00019178,2]
[387188511,1758623571678,-480.0,0.00019178,2]
[387188512,1758623571700,-480.0,0.00019178,2]
[387188513,1758623571723,-480.0,0.00019178,2]
[387188514,1758623571748,-480.0,0.00019178,2]
[387188515,1758623571771,-480.0,0.00019178,2]
[387188516,1758623571793,-480.0,0.00019178,2]
[387188517,1758623571817,-480.0,0.00019178,2]
[387188518,1758623571839,-480.0,0.00019178,2]
[387188519,1758623571860,-497.88127719,0.00019178,2]
[387188520,1758623571883,-480.0,0.00019178,2]
[387188521,1758623571905,-480.0,0.00019178,2]
[387188522,1758623571927,-480.0,0.00019178,2]
[387188523,1758623571950,-670.22,0.00019178,2]
[387188524,1758623571972,-480.0,0.00019178,2]
[387188525,1758623571994,-480.0,0.00019178,2]
[387188526,1758623572023,-480.0,0.00019178,2]
[387188527,1758623572046,-480.0,0.00019178,2]
[387188528,1758623572068,-480.0,0.00019178,2]
[387188529,1758623572090,-480.0,0.00019178,2]
[387188530,1758623572112,-480.0,0.00019178,2]
[387188531,1758623572133,-480.0,0.00019178,2]
[387188532,1758623572155,-480.0,0.00019178,2]
[387188533,1758623572178,-480.0,0.00019178,2]
[387188534,1758623572199,-480.0,0.00019178,2]
[387188535,1758623572221,-480.0,0.00019178,2]
[387188536,1758623572244,-617.64,0.00019178,2]
[387188537,1758623572266,-480.0,0.00019178,2]
[387188538,1758623572288,-480.0,0.00019178,2]
[387188539,1758623572309,-482.29782253,0.00019178,2]
[387188540,1758623572332,-480.0,0.00019178,2]
[387188541,1758623572354,-480.0,0.00019178,2]
[387188542,1758623572375,-480.0,0.00019178,2]
[387188543,1758623572401,-480.0,0.00019178,2]
[387188544,1758623572423,-480.0,0.00019178,2]
[387188545,1758623572444,-487.27668351,0.00019178,2]
[387188546,1758623572466,-480.0,0.00019178,2]
[387188547,1758623572488,-480.0,0.00019178,2]
[387188548,1758623572510,-484.88325516,0.00019178,2]
[387188549,1758623572532,-480.0,0.00019178,2]
[387188550,1758623572553,-151.0,0.00019178,2]
[387188551,1758623572575,-480.0,0.00019178,2]
[387188552,1758623572597,-151.0,0.00019178,2]
[387188553,1758623572619,-151.0,0.00019178,2]
[387188554,1758623572640,-151.0,0.00019178,2]
[387188555,1758623572662,-480.0,0.00019178,2]
[387188556,1758623572684,-480.0,0.00019178,2]
[387188557,1758623572706,-480.0,0.00019178,2]
[387188558,1758623572729,-607.21,0.00019178,2]
[387188559,1758623572752,-480.0,0.00019178,2]
[387188560,1758623572774,-488.69342445,0.00019178,2]
[387188561,1758623572797,-385.14751836,0.00019178,2]
[387188562,1758623572820,-480.0,0.00019178,2]
[387188563,1758623572843,-151.0,0.00019178,2]
[387188564,1758623572864,-151.0,0.00019178,2]
[387188565,1758623572887,-151.0,0.00019178,2]
[387188566,1758623572910,-151.0,0.00019178,2]
[387188567,1758623572932,-151.0,0.00019178,2]
[387188568,1758623573042,-151.0,0.00019178,2]
[387188569,1758623573067,-151.0,0.00019178,2]
[387188570,1758623573089,-151.0,0.00019178,2]
[387188571,1758623573112,-979.97,0.00019178,2]
[387188572,1758623573134,-167.418352,0.00019178,2]
[387188573,1758623573157,-480.0,0.00019178,2]
[387188574,1758623573181,-637.27,0.00019178,2]
[387188575,1758623573205,-1852.57,0.00019178,2]
[387188576,1758623573227,-480.0,0.00019178,2]
[387188577,1758623573250,-151.0,0.00019178,2]
[387188578,1758623573274,-480.0,0.00019178,2]
[387188579,1758623573298,-289.7353372,0.00019178,2]
[387188599,1758624182508,173.63209426,0.00017988,2]
[387188601,1758624461917,5000.0,0.00029295,60]
[387188602,1758624601570,1586.52716238,0.00027,120]
[387188605,1758624632145,-178.76761,0.00018062,2]
[387188606,1758624632156,-493.56413106,0.00018888,2]
[387188607,1758624632166,-300.0,0.00018973,2]
[387188608,1758624632176,-300.0,0.00018973,2]
[387188609,1758624632186,-300.0,0.00018973,2]
[387188610,1758624632197,-300.0,0.00018973,2]
[387188612,1758624632206,-300.0,0.00018973,2]
[387188614,1758624632215,-209.8080624,0.00018973,2]
[387188616,1758624632226,-990.1919376,0.00018973,2]
[387188617,1758624632235,-454.82303815,0.00018974,2]
[387188618,1758624632246,-462.36234035,0.00018974,2]
[387188619,1758624632255,-526.43900223,0.00018974,2]
[387188620,1758624632267,-601.76368681,0.00018974,2]
[387188621,1758624632278,-5495.61677247,0.00018974,2]
[387188622,1758624632290,-830.68846936,0.00018974,2]
[387188767,1758624635134,-1605.39259091,0.00018974,2]
[387188768,1758624635143,-168.0,0.00018979,2]
[387188769,1758624635155,-849.0,0.00018987,2]
[387188770,1758624635164,-2002.59043709,0.00018988,2]
[387188771,1758624635181,-26216.36171435,0.00018988,2]
[387188808,1758624639039,-500.0,0.00018987,2]
[387188809,1758624639048,-500.0,0.00018987,2]
[387188810,1758624639058,-401.21430455,0.00018987,2]
[387188811,1758624639070,-98.78569545,0.00018987,2]
[387188812,1758624639080,-500.0,0.00018987,2]
[387188813,1758624639089,-500.0,0.00018987,2]
[387188814,1758624639104,-500.0,0.00018987,2]
[387188815,1758624639120,-500.0,0.00018987,2]
[387188816,1758624639130,-500.0,0.00018987,2]
[387188817,1758624639140,-500.0,0.00018987,2]
[387188818,1758624639149,-500.0,0.00018987,2]
[387188819,1758624639160,-488.70098718,0.00018987,2]
[387188820,1758624639170,-500.0,0.00018987,2]
[387188821,1758624639179,-500.0,0.00018987,2]
[387188822,1758624639188,-500.0,0.00018987,2]
[387188823,1758624639199,-500.0,0.00018987,2]
[387188824,1758624639208,-500.0,0.00018987,2]
[387188825,1758624639218,-428.29389583,0.00018987,2]
[387188826,1758624639227,-500.0,0.00018987,2]
[387188827,1758624639237,-500.0,0.00018987,2]
[387188828,1758624639247,-500.0,0.00018987,2]
[387188829,1758624639261,-500.0,0.00018987,2]
[387188830,1758624639271,-377.52191915,0.00018987,2]
[387188831,1758624639281,-500.0,0.00018987,2]
[387188832,1758624639291,-500.0,0.00018987,2]
[387188833,1758624639301,-168.44213667,0.00018987,2]
[387188834,1758624639311,-500.0,0.00018987,2]
[387188835,1758624639321,-500.0,0.00018987,2]
[387188836,1758624639331,-311.63405029,0.00018987,2]
[387188837,1758624639341,-500.0,0.00018987,2]
[387188838,1758624639350,-500.0,0.00018987,2]
[387188839,1758624639360,-500.0,0.00018987,2]
[387188840,1758624639369,-500.0,0.00018987,2]
[387188841,1758624639378,-500.0,0.00018987,2]
[387188842,1758624639392,-500.0,0.00018987,2]
[387188843,1758624639407,-500.0,0.00018987,2]
[387188844,1758624639420,-500.0,0.00018987,2]
[387188845,1758624639432,-500.0,0.00018987,2]
[387188846,1758624639445,-500.0,0.00018987,2]
[387188847,1758624639459,-500.0,0.00018987,2]
[387188848,1758624639473,-500.0,0.00018987,2]
[387188849,1758624639485,-272.9630502,0.00018987,2]
[387188858,1758624640008,-227.0369498,0.00018987,2]
[387188859,1758624640021,-132.95580704,0.00018987,2]
[387188860,1758624640034,-367.04419296,0.00018987,2]
[387188861,1758624640045,-500.0,0.00018987,2]
[387188862,1758624640057,-500.0,0.00018987,2]
[387188863,1758624640072,-500.0,0.00018987,2]
[387188864,1758624640085,-7339.54039098,0.00018988,2]
[387188865,1758624640099,-11895.32042991,0.00018988,2]
[387188866,1758624640112,-500.0,0.00018989,2]
[387188867,1758624640127,-893.49,0.00019064,3]
[387188868,1758624640139,-446.75,0.00019064,3]
[387188870,1758624640151,-223.37,0.00019064,3]
[387188872,1758624640164,-670.14,0.00019064,3]
[387188874,1758624640175,-604.453,0.00019071,2]
[387188875,1758624640189,-446.71965862,0.00019073,2]
[387188876,1758624640201,-555.3895003,0.00019073,2]
[387188877,1758624640213,-555.3895003,0.00019073,2]
[387188878,1758624640224,-165.85793882,0.00019073,2]
[387188879,1758624640236,-555.3895003,0.00019073,2]
[387188880,1758624640248,-555.3895003,0.00019073,2]
[387188881,1758624640262,-555.3895003,0.00019073,2]
[387188882,1758624640274,-555.3895003,0.00019073,2]
[387188883,1758624640285,-555.3895003,0.00019073,2]
[387188884,1758624640297,-555.3895003,0.00019073,2]
[387188885,1758624640308,-555.3895003,0.00019073,2]
[387188886,1758624640320,-555.3895003,0.00019073,2]
[387188887,1758624640331,-555.3895003,0.00019073,2]
[387188888,1758624640343,-555.3895003,0.00019073,2]
[387188889,1758624640355,-555.3895003,0.00019073,2]
[387188890,1758624640367,-555.3895003,0.00019073,2]
[387188891,1758624640378,-555.3895003,0.00019073,2]
[387188892,1758624640389,-555.3895003,0.00019073,2]
[387188893,1758624640401,-555.3895003,0.00019073,2]
[387188894,1758624640414,-555.3895003,0.00019073,2]
[387188895,1758624640428,-555.3895003,0.00019073,2]
[387188896,1758624640440,-555.3895003,0.00019073,2]
[387188897,1758624640451,-566.49729031,0.00019073,2]
[387188898,1758624640463,-566.49729031,0.00019073,2]
[387188899,1758624640474,-566.49729031,0.00019073,2]
[387188900,1758624640485,-566.49729031,0.00019073,2]
[387188901,1758624640498,-566.49729031,0.00019073,2]
[387188902,1758624640511,-566.49729031,0.00019073,2]
[387188903,1758624640522,-566.49729031,0.00019073,2]
[387188904,1758624640536,-566.49729031,0.00019073,2]
[387188905,1758624640565,-566.49729031,0.00019073,2]
[387188906,1758624640577,-566.49729031,0.00019073,2]
[387188907,1758624640589,-172927.18746667,0.00019074,2]
[387188908,1758624640601,-917.18537846,0.00019137,2]
[387188909,1758624640613,-151.0,0.00019166,2]
[387188910,1758624640623,-181.08010149,0.00019166,2]
[387188911,1758624640633,-222.62883569,0.00019166,2]
[387188912,1758624640643,-500.0,0.00019166,2]
[387188913,1758624640653,-500.0,0.00019166,2]
[387188914,1758624640662,-500.0,0.00019166,2]
[387188915,1758624640672,-500.0,0.00019166,2]
[387188916,1758624640682,-500.0,0.00019166,2]
[387188917,1758624640829,-500.0,0.00019166,2]
[387188918,1758624640844,-500.0,0.00019166,2]
[387188919,1758624640854,-500.0,0.00019166,2]
[387188920,1758624640863,-500.0,0.00019166,2]
[387188921,1758624640873,-500.0,0.00019166,2]
[387188922,1758624640883,-500.0,0.00019166,2]
[387188923,1758624640892,-580.39495328,0.00019173,2]
[387188924,1758624640902,-503.46314464,0.00019173,2]
[387188925,1758624640912,-500.0,0.00019173,2]
[387188926,1758624640921,-500.98446213,0.00019173,2]
[387188927,1758624640931,-501.0900848,0.00019173,2]
[387188928,1758624640941,-500.0,0.00019173,2]
[387188929,1758624640950,-500.0,0.00019173,2]
[387188930,1758624640959,-500.0,0.00019173,2]
[387188931,1758624640969,-500.0,0.00019173,2]
[387188932,1758624640978,-164.76717176,0.00019173,2]
[387188933,1758624640988,-500.54741143,0.00019173,2]
[387188934,1758624640997,-278.92333062,0.00019173,2]
[387188935,1758624641008,-501.70713422,0.00019173,2]
[387188936,1758624641017,-500.0,0.00019173,2]
[387188937,1758624641026,-640.3741834,0.00019173,2]
[387188938,1758624641035,-501.61266007,0.00019173,2]
[387188939,1758624641044,-500.0,0.00019173,2]
[387188940,1758624641054,-501.12478516,0.00019173,2]
[387188941,1758624641063,-500.0,0.00019173,2]
[387188942,1758624641072,-500.0,0.00019173,2]
[387188943,1758624641082,-500.0,0.00019173,2]
[387188944,1758624641091,-151.0,0.00019177,2]
[387188945,1758624641101,-247.05241869,0.00019177,2]
[387188946,1758624641111,-151.58582936,0.00019177,2]
[387188947,1758624641121,-500.0,0.00019177,2]
[387188948,1758624641131,-152.56925732,0.00019177,2]
[387188949,1758624641140,-151.0,0.00019177,2]
[387188950,1758624641151,-151.0,0.00019177,2]
[387188951,1758624641160,-502.98066334,0.00019178,2]
[387188952,1758624641169,-480.0,0.00019178,2]
[387188953,1758624641179,-480.0,0.00019178,2]
[387188954,1758624641188,-480.0,0.00019178,2]
[387188955,1758624641198,-488.60292603,0.00019178,2]
[387188956,1758624641207,-480.0,0.00019178,2]
[387188957,1758624641216,-490.89571201,0.00019178,2]
[387188958,1758624641226,-521.60334919,0.00019178,3]
[387188959,1758624641235,-480.0,0.00019178,2]
[387188960,1758624641244,-480.0,0.00019178,2]
[387188961,1758624641253,-496.53950998,0.00019178,2]
[387188962,1758624641265,-480.0,0.00019178,2]
[387188963,1758624641275,-480.0,0.00019178,2]
[387188964,1758624641284,-480.0,0.00019178,2]
[387188965,1758624641293,-480.0,0.00019178,2]
[387188966,1758624641303,-480.42543614,0.00019178,2]
[387188967,1758624641312,-480.0,0.00019178,2]
[387188968,1758624641321,-480.0,0.00019178,2]
[387188969,1758624641331,-480.0,0.00019178,2]
[387188970,1758624641340,-480.0,0.00019178,2]
[387188971,1758624641350,-480.0,0.00019178,2]
[387188972,1758624641359,-480.0,0.00019178,2]
[387188973,1758624641369,-480.0,0.00019178,2]
[387188974,1758624641378,-481.9997058,0.00019178,2]
[387188975,1758624641387,-488.91182747,0.00019178,2]
[387188976,1758624641397,-480.0,0.00019178,2]
[387188977,1758624641407,-480.0,0.00019178,2]
[387188978,1758624641417,-480.0,0.00019178,2]
[387188979,1758624641426,-480.0,0.00019178,2]
[387188980,1758624641436,-480.0,0.00019178,2]
[387188981,1758624641445,-480.0,0.00019178,2]
[387188982,1758624641455,-480.0,0.00019178,2]
[387188983,1758624641464,-480.0,0.00019178,2]
[387188984,1758624641473,-480.0,0.00019178,2]
[387188985,1758624641482,-480.0,0.00019178,2]
[387188986,1758624641492,-480.0,0.00019178,2]
[387188987,1758624641501,-463.47248604,0.00019178,2]
[387188988,1758624641511,-480.0,0.00019178,2]
[387188989,1758624641520,-480.0,0.00019178,2]
[387188990,1758624641530,-480.0,0.00019178,2]
[387188991,1758624641540,-480.0,0.00019178,2]
[387188992,1758624641550,-203.26465016,0.00019178,2]
[387188993,1758624641559,-480.0,0.00019178,2]
[387188994,1758624641569,-225.30129456,0.00019178,2]
[387188995,1758624641578,-175.49809788,0.00019178,2]
[387188996,1758624641587,-480.0,0.00019178,2]
[387188997,1758624641596,-480.0,0.00019178,2]
[387188998,1758624641606,-480.0,0.00019178,2]
[387188999,1758624641615,-491.73271233,0.00019178,2]
[387189000,1758624641625,-480.0,0.00019178,2]
[387189001,1758624641634,-175.913928,0.00019178,2]
[387189002,1758624641644,-605.09028371,0.00019178,2]
[387189003,1758624641654,-480.0,0.00019178,2]
[387189004,1758624641663,-394.08622786,0.00019178,2]
[387189005,1758624641672,-151.0,0.00019178,2]
[387189006,1758624641681,-151.0,0.00019178,2]
[387189007,1758624641691,-151.0,0.00019178,2]
[387189008,1758624641700,-480.0,0.00019178,2]
[387189009,1758624641709,-151.0,0.00019178,2]
[387189010,1758624641718,-151.0,0.00019178,2]
[387189011,1758624641727,-151.0,0.00019178,2]
[387189012,1758624641736,-480.0,0.00019178,2]
[387189013,1758624641745,-480.0,0.00019178,2]
[387189014,1758624641755,-489.23846747,0.00019178,2]
[387189015,1758624641764,-497.69115979,0.00019178,2]
[387189016,1758624641774,-480.0,0.00019178,2]
[387189017,1758624641784,-480.0,0.00019178,2]
[387189018,1758624641793,-480.0,0.00019178,2]
[387189019,1758624641803,-480.0,0.00019178,2]
[387189020,1758624641812,-484.06165734,0.00019178,2]
[387189021,1758624641821,-496.35100021,0.00019178,2]
[387189022,1758624641831,-486.64828383,0.00019178,2]
[387189023,1758624641840,-480.0,0.00019178,2]
[387189024,1758624641849,-2322.9426463,0.00019178,2]
[387189025,1758624641858,-480.0,0.00019178,2]
[387189026,1758624641867,-480.0,0.00019178,2]
[387189027,1758624641876,-480.0,0.00019178,2]
[387189028,1758624641885,-480.0,0.00019178,2]
[387189029,1758624641895,-480.0,0.00019178,2]
[387189030,1758624641904,-480.0,0.00019178,2]
[387189031,1758624641913,-480.0,0.00019178,2]
[387189032,1758624641922,-480.0,0.00019178,2]
[387189033,1758624641931,-493.66120644,0.00019178,2]
[387189034,1758624641941,-627.48,0.00019178,2]
[387189035,1758624641950,-480.0,0.00019178,2]
[387189036,1758624641960,-480.0,0.00019178,2]
[387189037,1758624641970,-480.0,0.00019178,2]
[387189038,1758624641979,-454.23509405,0.00019178,2]
[387189039,1758624641988,-480.0,0.00019178,2]
[387189040,1758624641998,-480.0,0.00019178,2]
[387189041,1758624642008,-480.0,0.00019178,2]
[387189042,1758624642018,-480.0,0.00019178,2]
[387189043,1758624642027,-480.0,0.00019178,2]
[387189044,1758624642037,-480.0,0.00019178,2]
[387189045,1758624642046,-491.79404082,0.00019178,2]
[387189046,1758624642055,-480.0,0.00019178,2]
[387189047,1758624642065,-486.02660166,0.00019178,2]
[387189048,1758624642075,-1001.23869604,0.00019178,2]
[387189049,1758624642085,-503.24537319,0.00019178,2]
[387189050,1758624642094,-208.431794,0.00019178,2]
[387189051,1758624642104,-480.0,0.00019178,2]
[387189052,1758624642115,-480.0,0.00019178,2]
[387189053,1758624642125,-480.0,0.00019178,2]
[387189054,1758624642135,-586.79188805,0.00019178,2]
[387189055,1758624642144,-480.0,0.00019178,2]
[387189056,1758624642153,-285.35695971,0.00019178,2]
[387189057,1758624642162,-480.0,0.00019178,2]
[387189058,1758624642171,-480.0,0.00019178,2]
[387189059,1758624642180,-480.0,0.00019178,2]
[387189060,1758624642191,-480.0,0.00019178,2]
[387189061,1758624642200,-480.0,0.00019178,2]
[387189062,1758624642209,-573.84,0.00019178,2]
[387189063,1758624642218,-480.0,0.00019178,2]
[387189064,1758624642228,-480.0,0.00019178,2]
[387189065,1758624642237,-480.0,0.00019178,2]
[387189066,1758624642246,-480.0,0.00019178,2]
[387189067,1758624642255,-480.0,0.00019178,2]
[387189068,1758624642264,-480.0,0.00019178,2]
[387189069,1758624642273,-480.0,0.00019178,2]
[387189070,1758624642283,-480.0,0.00019178,2]
[387189071,1758624642291,-480.0,0.00019178,2]
[387189072,1758624642300,-484.60917598,0.00019178,2]
[387189073,1758624642311,-480.0,0.00019178,2]
[387189074,1758624642320,-480.0,0.00019178,2]
[387189075,1758624642329,-480.0,0.00019178,2]
[387189076,1758624642340,-480.0,0.00019178,2]
[387189077,1758624642349,-480.0,0.00019178,2]
[387189078,1758624642358,-480.0,0.00019178,2]
[387189079,1758624642367,-480.0,0.00019178,2]
[387189080,1758624642376,-480.0,0.00019178,2]
[387189081,1758624642385,-484.87057493,0.00019178,2]
[387189082,1758624642394,-480.0,0.00019178,2]
[387189083,1758624642403,-480.0,0.00019178,2]
[387189084,1758624642412,-480.0,0.00019178,2]
[387189085,1758624642421,-480.0,0.00019178,2]
[387189086,1758624642430,-480.0,0.00019178,2]
[387189087,1758624642439,-480.0,0.00019178,2]
[387189089,1758624642448,-480.0,0.00019178,2]
[387189091,1758624642457,-405.4841737,0.00019178,2]
[387189093,1758624642467,-493.5928247,0.00019178,2]
[387189094,1758624642476,-480.0,0.00019178,2]
[387189096,1758624642485,-480.0,0.00019178,2]
[387189098,1758624642494,-480.0,0.00019178,2]
[387189101,1758624642503,-482.08442147,0.00019178,2]
[387189102,1758624642513,-674.05,0.00019178,2]
[387189103,1758624642523,-480.0,0.00019178,2]
[387189104,1758624642532,-504.90404253,0.00019178,2]
[387189105,1758624642541,-545.51503395,0.00019178,2]
[387189106,1758624642999,-123.52496605,0.00019178,2]
[387189107,1758624643009,-480.0,0.00019178,2]
[387189108,1758624643018,-480.0,0.00019178,2]
[387189109,1758624643028,-480.0,0.00019178,2]
[387189110,1758624643038,-480.0,0.00019178,2]
[387189111,1758624643048,-301.75509036,0.00019178,2]
[387189112,1758624643057,-480.0,0.00019178,2]
[387189113,1758624643067,-726.2,0.00019178,2]
[387189114,1758624643076,-480.0,0.00019178,2]
[387189115,1758624643085,-480.0,0.00019178,2]
[387189116,1758624643095,-627.78584222,0.00019178,2]
[387189117,1758624643104,-480.0,0.00019178,2]
[387189118,1758624643118,-480.0,0.00019178,2]
[387189119,1758624643127,-480.0,0.00019178,2]
[387189120,1758624643136,-480.0,0.00019178,2]
[387189121,1758624643146,-480.0,0.00019178,2]
[387189122,1758624643156,-480.0,0.00019178,2]
[387189124,1758624643166,-480.0,0.00019178,2]
[387189125,1758624643175,-480.0,0.00019178,2]
[387189127,1758624643184,-336.67443414,0.00019178,2]
[387189128,1758624643194,-480.0,0.00019178,2]
[387189130,1758624643203,-480.0,0.00019178,2]
[387189132,1758624643212,-480.0,0.00019178,2]
[387189134,1758624643222,-480.0,0.00019178,2]
[387189136,1758624643231,-480.0,0.00019178,2]
[387189138,1758624643240,-563.78683149,0.00019178,2]
[387189140,1758624643250,-480.0,0.00019178,2]
[387189143,1758624643259,-480.0,0.00019178,2]
[387189146,1758624643268,-480.0,0.00019178,2]
[387189148,1758624643277,-487.69432848,0.00019178,2]
[387189151,1758624643287,-480.0,0.00019178,2]
[387189153,1758624643297,-480.0,0.00019178,2]
[387189155,1758624643306,-480.0,0.00019178,2]
[387189157,1758624643410,-480.0,0.00019178,2]
[387189158,1758624643420,-480.0,0.00019178,2]
[387189159,1758624643430,-480.0,0.00019178,2]
[387189160,1758624643439,-94.57850727,0.00019178,2]
[387189161,1758624643461,-385.42149273,0.00019178,2]
[387189162,1758624643473,-480.0,0.00019178,2]
[387189163,1758624643482,-480.0,0.00019178,2]
[387189164,1758624643492,-480.0,0.00019178,2]
[387189165,1758624643501,-369.09189341,0.00019178,2]
[387189166,1758624643510,-480.0,0.00019178,2]
[387189167,1758624643520,-480.0,0.00019178,2]
[387189168,1758624643530,-480.0,0.00019178,2]
[387189169,1758624643539,-765.82,0.00019178,2]
[387189170,1758624643549,-188.63855572,0.00019178,2]
[387189171,1758624643558,-471.77933249,0.00019178,2]
[387189172,1758624643568,-480.0,0.00019178,2]
[387189173,1758624643578,-480.0,0.00019178,2]
[387189174,1758624643587,-480.0,0.00019178,2]
[387189175,1758624643597,-195.55882493,0.00019178,2]
[387189176,1758624643609,-284.44117507,0.00019178,2]
[387189177,1758624643618,-480.0,0.00019178,2]
[387189178,1758624643629,-404.80120043,0.00019178,2]
[387189179,1758624643639,-480.0,0.00019178,2]
[387189180,1758624643648,-480.0,0.00019178,2]
[387189181,1758624643658,-480.0,0.00019178,2]
[387189182,1758624643671,-519.47721766,0.00019178,2]
[387189183,1758624643680,-1368.5329399,0.00019178,2]
[387189198,1758624646047,-192.1670601,0.00019178,2]
[387189199,1758624646056,-198.81128936,0.00019178,2]
[387189200,1758624646066,-197.92665054,0.00019178,2]
[387189201,1758624646206,-282.07334946,0.00019178,2]
[387189202,1758624646216,-271.88082204,0.00019178,2]
[387189203,1758624646226,-480.0,0.00019178,2]
[387189204,1758624646235,-480.0,0.00019178,2]
[387189205,1758624646244,-480.0,0.00019178,2]
[387189206,1758624646254,-929.72,0.00019178,2]
[387189207,1758624646264,-76.3258285,0.00019178,2]
[387189214,1758625322858,-219.91356614,0.00018076,2]
[387189215,1758625326595,-25.76643386,0.00018076,2]
[387189216,1758625326618,-126.23356614,0.00018077,2]
[387189217,1758625329930,-52.53404386,0.00018077,2]
[387189219,1758625385687,300.0,0.00027,120]
[387189220,1758625567024,-233.69952228,0.00018028,2]
[387189221,1758625570111,-290.8918336,0.00018028,2]
[387189222,1758625571842,-167.09315796,0.00018028,2]
[387189223,1758625575240,-181.5589787,0.00018028,2]
[387189224,1758625579143,-423.16203841,0.00018028,2]
[387189225,1758625582678,-375.96904795,0.00018028,2]
[387189226,1758625585458,-164.86669082,0.00018028,2]
[387189227,1758625588643,-331.9797778,0.00018028,2]
[387189228,1758625590315,-192.20953861,0.00018028,2]
[387189229,1758625598970,-180.31810537,0.00018028,2]
[387189230,1758625601578,-431.57659154,0.00018028,2]
[387189231,1758625604266,-177.8110459,0.00018028,2]
[387189232,1758625607985,-339.54014747,0.00018028,2]